fUSD/lending_fUSD_20240513
["ID","MTS","AMOUNT","RATE_DAILY","PERIOD"]
[326915328,1715571045272,-379.03327664,0.00012977,2]
[326915329,1715571045282,-191.48068559,0.00012977,2]
[326915330,1715571045291,-255.52870276,0.00012977,2]
[326915331,1715571045301,-197.72359303,0.00012977,2]
[326915332,1715571045310,-201.85394219,0.00012977,2]
[326915333,1715571045319,-505.98064002,0.00012977,2]
[326915334,1715571045328,-627.0,0.00012977,2]
[326915335,1715571045337,-187.90608946,0.00012977,2]
[326915336,1715571045347,-500.0,0.00012977,2]
[326915337,1715571045356,-500.0,0.00012977,2]
[326915338,1715571045366,-500.0,0.00012977,2]
[326915339,1715571045375,-309.01590117,0.00012977,2]
[326915340,1715571045384,-266.61964782,0.00012977,2]
[326915341,1715571045394,-500.0,0.00012977,2]
[326915342,1715571045403,-273.33288513,0.00012977,2]
[326915343,1715571045413,-500.0,0.00012977,2]
[326915344,1715571045427,-500.0,0.00012977,2]
[326915345,1715571045437,-500.0,0.00012977,2]
[326915346,1715571045447,-500.0,0.00012977,2]
[326915347,1715571045456,-500.0,0.00012977,2]
[326915348,1715571045468,-207.89107197,0.00012977,2]
[326915349,1715571045477,-165.53725201,0.00012977,2]
[326915350,1715571045487,-428.75757666,0.00012977,2]
[326915351,1715571045503,-71.24242334,0.00012977,2]
[326915352,1715571045511,-500.0,0.00012977,2]
[326915353,1715571045521,-500.0,0.00012977,2]
[326915354,1715571045531,-500.0,0.00012977,2]
[326915355,1715571045542,-3607.377,0.00012978,2]
[326915356,1715571045552,-419.71419204,0.00012978,2]
[326915357,1715571045562,-195.72161682,0.00012978,2]
[326915358,1715571045572,-233.6989714,0.00012978,2]
[326915359,1715571045582,-1026.67613524,0.00012978,2]
[326915360,1715571045594,-112.87689318,0.00012978,2]
[326915361,1715571045603,-1432.81169147,0.00012978,2]
[326915362,1715571045613,-1000.0,0.00012978,2]
[326915363,1715571045622,-229.03479654,0.00012978,2]
[326915364,1715571045632,-408.3633624,0.00012978,2]
[326915365,1715571045641,-162.46980569,0.00012978,2]
[326915366,1715571045651,-531.50459921,0.00012978,2]
[326915367,1715571045661,-500.0,0.00012978,2]
[326915368,1715571045671,-500.0,0.00012978,2]
[326915369,1715571045680,-187.60031067,0.00012978,2]
[326915370,1715571045690,-500.0,0.00012978,2]
[326915371,1715571045700,-500.0,0.00012978,2]
[326915372,1715571045710,-500.0,0.00012978,2]
[326915373,1715571045719,-500.0,0.00012978,2]
[326915374,1715571045730,-500.0,0.00012978,2]
[326915375,1715571045740,-409.20549455,0.00012978,2]
[326915376,1715571045750,-507.17489172,0.00012978,2]
[326915377,1715571045759,-633.51742825,0.00012978,2]
[326915378,1715571045769,-497.13593514,0.00012978,2]
[326915379,1715571045779,-574.39092147,0.00012978,2]
[326915380,1715571045788,-500.0,0.00012978,2]
[326915381,1715571045798,-500.0,0.00012978,2]
[326915382,1715571045808,-500.0,0.00012978,2]
[326915383,1715571045818,-290.37104309,0.00012978,2]
[326915384,1715571045829,-583.07001982,0.00012978,2]
[326915385,1715571045838,-506.73049463,0.00012978,2]
[326915386,1715571045848,-500.0,0.00012978,2]
[326915387,1715571045858,-500.0,0.00012978,2]
[326915388,1715571045868,-500.0,0.00012978,2]
[326915389,1715571045877,-507.60140633,0.00012978,2]
[326915390,1715571045887,-506.86459746,0.00012978,2]
[326915391,1715571045896,-500.0,0.00012978,2]
[326915392,1715571045906,-643.64452055,0.00012978,2]
[326915393,1715571045916,-527.70574757,0.00012978,2]
[326915394,1715571045925,-566.11854803,0.00012978,2]
[326915395,1715571045935,-500.0,0.00012978,2]
[326915396,1715571045944,-500.0,0.00012978,2]
[326915397,1715571045954,-500.0,0.00012978,2]
[326915398,1715571045964,-500.0,0.00012978,2]
[326915399,1715571045973,-500.0,0.00012978,2]
[326915400,1715571045983,-500.0,0.00012978,2]
[326915401,1715571045994,-500.0,0.00012978,2]
[326915402,1715571046003,-500.0,0.00012978,2]
[326915403,1715571046013,-508.05106408,0.00012978,2]
[326915404,1715571046022,-500.0,0.00012978,2]
[326915405,1715571046032,-369.59027249,0.00012978,2]
[326915406,1715571046041,-505.68453355,0.00012978,2]
[326915407,1715571046051,-190.45087087,0.00012978,2]
[326915408,1715571046061,-500.0,0.00012978,2]
[326915409,1715571046071,-500.0,0.00012978,2]
[326915410,1715571046080,-505.83038831,0.00012978,2]
[326915411,1715571046090,-506.4911631,0.00012978,2]
[326915412,1715571046101,-487.10423256,0.00012978,2]
[326915413,1715571046112,-510.61297434,0.00012978,2]
[326915414,1715571046122,-500.0,0.00012978,2]
[326915415,1715571046132,-315.82129089,0.00012978,2]
[326915417,1715571046142,-500.0,0.00012978,2]
[326915419,1715571046152,-476.71158414,0.00012978,2]
[326915420,1715571046162,-387.49799585,0.00012978,2]
[326915421,1715571046172,-515.80524827,0.00012978,2]
[326915422,1715571046181,-500.0,0.00012978,2]
[326915423,1715571046191,-500.0,0.00012978,2]
[326915424,1715571046201,-509.01650311,0.00012978,2]
[326915425,1715571046210,-500.0,0.00012978,2]
[326915426,1715571046220,-500.0,0.00012978,2]
[326915427,1715571046230,-503.54649206,0.00012978,2]
[326915428,1715571046239,-505.27649144,0.00012978,2]
[326915429,1715571046250,-500.0,0.00012978,2]
[326915430,1715571046259,-500.0,0.00012978,2]
[326915431,1715571046269,-533.62754953,0.00012978,2]
[326915432,1715571046279,-509.31482729,0.00012978,2]
[326915433,1715571046289,-508.96567684,0.00012978,2]
[326915434,1715571046299,-505.49812912,0.00012978,2]
[326915435,1715571046310,-510.15902426,0.00012978,2]
[326915436,1715571046319,-500.0,0.00012978,2]
[326915437,1715571046329,-511.37841601,0.00012978,2]
[326915438,1715571046338,-500.0,0.00012978,2]
[326915439,1715571046348,-500.0,0.00012978,2]
[326915440,1715571046357,-500.0,0.00012978,2]
[326915441,1715571046367,-589.72814413,0.00012978,2]
[326915442,1715571046376,-500.0,0.00012978,2]
[326915443,1715571046385,-500.0,0.00012978,2]
[326915444,1715571046395,-500.0,0.00012978,2]
[326915445,1715571046404,-429.16186585,0.00012978,2]
[326915446,1715571046414,-506.5598955,0.00012978,2]
[326915447,1715571046425,-500.0,0.00012978,2]
[326915448,1715571046439,-506.47781769,0.00012978,2]
[326915449,1715571046448,-500.0,0.00012978,2]
[326915450,1715571046458,-500.0,0.00012978,2]
[326915451,1715571046468,-505.02356114,0.00012978,2]
[326915452,1715571046477,-507.81380597,0.00012978,2]
[326915453,1715571046487,-509.76855651,0.00012978,2]
[326915454,1715571046496,-521.34470823,0.00012978,2]
[326915455,1715571046509,-568.19451266,0.00012978,2]
[326915456,1715571046519,-506.67915261,0.00012978,2]
[326915457,1715571046528,-572.25719564,0.00012978,2]
[326915458,1715571046538,-500.0,0.00012978,2]
[326915459,1715571046547,-507.49469591,0.00012978,2]
[326915460,1715571046556,-221.09179239,0.00012978,2]
[326915461,1715571046566,-505.83509853,0.00012978,2]
[326915462,1715571046576,-500.0,0.00012978,2]
[326915463,1715571046586,-503.39502998,0.00012978,2]
[326915464,1715571046595,-511.54648501,0.00012978,2]
[326915465,1715571046604,-500.0,0.00012978,2]
[326915466,1715571046613,-500.0,0.00012978,2]
[326915467,1715571046623,-505.6334731,0.00012978,2]
[326915468,1715571046632,-523.11010149,0.00012978,2]
[326915469,1715571046642,-500.0,0.00012978,2]
[326915470,1715571046651,-563.51292687,0.00012978,2]
[326915471,1715571046660,-506.43565108,0.00012978,2]
[326915472,1715571046670,-505.84866469,0.00012978,2]
[326915473,1715571046679,-500.0,0.00012978,2]
[326915474,1715571046689,-500.0,0.00012978,2]
[326915475,1715571046699,-504.29482306,0.00012978,2]
[326915476,1715571046708,-505.61222784,0.00012978,2]
[326915477,1715571046717,-511.39306846,0.00012978,2]
[326915478,1715571046727,-509.30217943,0.00012978,2]
[326915479,1715571046736,-505.02795565,0.00012978,2]
[326915480,1715571046747,-506.81455954,0.00012978,2]
[326915481,1715571046757,-500.0,0.00012978,2]
[326915482,1715571046766,-500.0,0.00012978,2]
[326915483,1715571046775,-500.0,0.00012978,2]
[326915484,1715571046784,-500.0,0.00012978,2]
[326915485,1715571046793,-500.0,0.00012978,2]
[326915486,1715571046803,-500.0,0.00012978,2]
[326915487,1715571046812,-500.0,0.00012978,2]
[326915488,1715571046821,-569.33,0.00012978,2]
[326915489,1715571046830,-506.6553387,0.00012978,2]
[326915490,1715571046839,-504.94314208,0.00012978,2]
[326915491,1715571046849,-562.84930719,0.00012978,2]
[326915492,1715571046858,-500.0,0.00012978,2]
[326915493,1715571046868,-500.0,0.00012978,2]
[326915494,1715571046877,-505.18258678,0.00012978,2]
[326915495,1715571046886,-500.0,0.00012978,2]
[326915496,1715571046895,-500.0,0.00012978,2]
[326915497,1715571046904,-500.0,0.00012978,2]
[326915498,1715571046914,-503.48348856,0.00012978,2]
[326915499,1715571046923,-506.19079867,0.00012978,2]
[326915500,1715571046932,-506.72853538,0.00012978,2]
[326915501,1715571046942,-504.63389883,0.00012978,2]
[326915502,1715571046951,-523.60726836,0.00012978,2]
[326915503,1715571046960,-500.0,0.00012978,2]
[326915504,1715571046969,-500.0,0.00012978,2]
[326915505,1715571046978,-500.0,0.00012978,2]
[326915506,1715571046988,-503.50061297,0.00012978,2]
[326915507,1715571046999,-529.51945937,0.00012978,2]
[326915508,1715571047008,-500.0,0.00012978,2]
[326915509,1715571047018,-503.12415272,0.00012978,2]
[326915510,1715571047027,-506.74767369,0.00012978,2]
[326915511,1715571047037,-500.0,0.00012978,2]
[326915512,1715571047046,-503.98976417,0.00012978,2]
[326915513,1715571047055,-500.0,0.00012978,2]
[326915514,1715571047065,-503.30917588,0.00012978,2]
[326915515,1715571047074,-514.38455551,0.00012978,2]
[326915516,1715571047083,-500.0,0.00012978,2]
[326915517,1715571047092,-503.47763734,0.00012978,2]
[326915518,1715571047101,-506.54193357,0.00012978,2]
[326915519,1715571047111,-505.97899121,0.00012978,2]
[326915520,1715571047120,-500.0,0.00012978,2]
[326915521,1715571047129,-500.0,0.00012978,2]
[326915522,1715571047138,-503.47240399,0.00012978,2]
[326915524,1715571047146,-500.0,0.00012978,2]
[326915526,1715571047156,-507.33116714,0.00012978,2]
[326915527,1715571047165,-500.0,0.00012978,2]
[326915528,1715571047174,-505.70705867,0.00012978,2]
[326915529,1715571047183,-500.0,0.00012978,2]
[326915530,1715571047192,-504.10416948,0.00012978,2]
[326915531,1715571047202,-500.0,0.00012978,2]
[326915532,1715571047212,-507.60365471,0.00012978,2]
[326915533,1715571047221,-500.0,0.00012978,2]
[326915534,1715571047231,-324.82056923,0.00012978,2]
[326915535,1715571047246,-506.87762745,0.00012978,2]
[326915536,1715571047255,-500.0,0.00012978,2]
[326915537,1715571047265,-500.0,0.00012978,2]
[326915538,1715571047274,-500.0,0.00012978,2]
[326915539,1715571047287,-188.83893487,0.00012978,2]
[326915540,1715571047296,-500.0,0.00012978,2]
[326915541,1715571047307,-500.0,0.00012978,2]
[326915542,1715571047316,-500.0,0.00012978,2]
[326915543,1715571047326,-500.0,0.00012978,2]
[326915544,1715571047336,-591.72249061,0.00012978,2]
[326915545,1715571047346,-500.0,0.00012978,2]
[326915546,1715571047355,-500.0,0.00012978,2]
[326915547,1715571047365,-500.0,0.00012978,2]
[326915548,1715571047375,-500.0,0.00012978,2]
[326915549,1715571047433,-527.11045815,0.00012978,2]
[326915550,1715571047442,-501.63788487,0.00012978,2]
[326915551,1715571047453,-500.0,0.00012978,2]
[326915552,1715571047462,-504.24523041,0.00012978,2]
[326915553,1715571047474,-506.4984228,0.00012978,2]
[326915554,1715571047483,-500.0,0.00012978,2]
[326915555,1715571047493,-505.19639898,0.00012978,2]
[326915556,1715571047503,-500.0,0.00012978,2]
[326915557,1715571047512,-500.0,0.00012978,2]
[326915558,1715571047521,-500.0,0.00012978,2]
[326915559,1715571047530,-500.0,0.00012978,2]
[326915560,1715571047539,-315.54147751,0.00012978,2]
[326915561,1715571047549,-506.11716488,0.00012978,2]
[326915562,1715571047557,-503.21432074,0.00012978,2]
[326915563,1715571047567,-464.31628465,0.00012978,2]
[326915564,1715571047576,-500.0,0.00012978,2]
[326915565,1715571047585,-504.89596252,0.00012978,2]
[326915566,1715571047594,-500.0,0.00012978,2]
[326915568,1715571047603,-500.0,0.00012978,2]
[326915570,1715571047613,-500.0,0.00012978,2]
[326915571,1715571047622,-221.04857315,0.00012978,2]
[326915572,1715571047631,-500.0,0.00012978,2]
[326915573,1715571047640,-523.7787699,0.00012978,2]
[326915574,1715571047649,-504.47353058,0.00012978,2]
[326915575,1715571047658,-504.95670682,0.00012978,2]
[326915576,1715571047668,-607.10862129,0.00012978,2]
[326915577,1715571047677,-506.95063704,0.00012978,2]
[326915578,1715571047686,-522.90515646,0.00012978,2]
[326915579,1715571047698,-500.0,0.00012978,2]
[326915580,1715571047707,-500.0,0.00012978,2]
[326915581,1715571047716,-500.0,0.00012978,2]
[326915582,1715571047727,-500.0,0.00012978,2]
[326915583,1715571047736,-500.0,0.00012978,2]
[326915584,1715571047747,-507.24655314,0.00012978,2]
[326915585,1715571047756,-518.49188527,0.00012978,2]
[326915586,1715571047765,-500.0,0.00012978,2]
[326915587,1715571047773,-515.24575043,0.00012978,2]
[326915588,1715571047783,-609.66286616,0.00012978,2]
[326915589,1715571047792,-500.0,0.00012978,2]
[326915590,1715571047801,-503.86038049,0.00012978,2]
[326915591,1715571047810,-500.0,0.00012978,2]
[326915592,1715571047819,-275.4795165,0.00012978,2]
[326915593,1715571047828,-507.07677403,0.00012978,2]
[326915594,1715571047838,-500.0,0.00012978,2]
[326915595,1715571047847,-506.72094195,0.00012978,2]
[326915596,1715571047855,-515.93289363,0.00012978,2]
[326915597,1715571047864,-500.0,0.00012978,2]
[326915598,1715571047873,-518.85641855,0.00012978,2]
[326915599,1715571047882,-518.10249642,0.00012978,2]
[326915600,1715571047891,-515.37261528,0.00012978,2]
[326915601,1715571047900,-517.93735832,0.00012978,2]
[326915602,1715571047909,-518.07645272,0.00012978,2]
[326915603,1715571047919,-509.67384135,0.00012978,2]
[326915604,1715571047927,-530.04459985,0.00012978,2]
[326915605,1715571047937,-500.0,0.00012978,2]
[326915606,1715571047946,-500.0,0.00012978,2]
[326915607,1715571047955,-519.53756003,0.00012978,2]
[326915608,1715571047964,-500.0,0.00012978,2]
[326915609,1715571047973,-243.50027235,0.00012978,2]
[326915610,1715571047982,-500.0,0.00012978,2]
[326915611,1715571047992,-500.0,0.00012978,2]
[326915612,1715571048003,-521.55278326,0.00012978,2]
[326915613,1715571048012,-500.0,0.00012978,2]
[326915614,1715571048021,-516.81477613,0.00012978,2]
[326915615,1715571048030,-500.0,0.00012978,2]
[326915616,1715571048039,-500.0,0.00012978,2]
[326915617,1715571048048,-500.0,0.00012978,2]
[326915618,1715571048058,-507.19225681,0.00012978,2]
[326915619,1715571048067,-521.31405126,0.00012978,2]
[326915620,1715571048076,-504.87030779,0.00012978,2]
[326915621,1715571048085,-513.74416503,0.00012978,2]
[326915622,1715571048094,-500.0,0.00012978,2]
[326915623,1715571048103,-500.0,0.00012978,2]
[326915624,1715571048112,-500.0,0.00012978,2]
[326915625,1715571048121,-500.0,0.00012978,2]
[326915626,1715571048130,-500.0,0.00012978,2]
[326915627,1715571048139,-500.0,0.00012978,2]
[326915628,1715571048148,-612.06818348,0.00012978,2]
[326915629,1715571048158,-500.0,0.00012978,2]
[326915630,1715571048167,-500.0,0.00012978,2]
[326915631,1715571048176,-532.11195105,0.00012978,2]
[326915632,1715571048186,-500.0,0.00012978,2]
[326915633,1715571048195,-504.02746294,0.00012978,2]
[326915634,1715571048205,-500.0,0.00012978,2]
[326915635,1715571048214,-500.0,0.00012978,2]
[326915636,1715571048224,-500.0,0.00012978,2]
[326915637,1715571048234,-500.0,0.00012978,2]
[326915638,1715571048245,-504.77983796,0.00012978,2]
[326915639,1715571048254,-500.0,0.00012978,2]
[326915640,1715571048263,-500.0,0.00012978,2]
[326915641,1715571048272,-500.0,0.00012978,2]
[326915642,1715571048282,-1512.76334421,0.00012978,2]
[326915643,1715571048291,-402.80035472,0.00012978,2]
[326915644,1715571048300,-308.42378769,0.00012978,2]
[326915645,1715571048310,-500.0,0.00012978,2]
[326915646,1715571048319,-165.26556897,0.00012978,2]
[326915647,1715571048328,-500.0,0.00012978,2]
[326915648,1715571048337,-500.0,0.00012978,2]
[326915649,1715571048346,-500.0,0.00012978,2]
[326915650,1715571048356,-1882.83285451,0.00012978,2]
[326915651,1715571048365,-504.57011878,0.00012978,2]
[326915652,1715571048374,-247.76966541,0.00012978,2]
[326915653,1715571048384,-29859.60885129,0.00012978,2]
[326915654,1715571048393,-469.83959269,0.00012978,2]
[326915655,1715571048402,-209.94006844,0.00012978,2]
[326915656,1715571048411,-386.41217458,0.00012978,2]
[326915657,1715571048421,-155.0,0.00012978,2]
[326915658,1715571048434,-347.60990373,0.00012978,2]
[326915659,1715571048443,-789.59364662,0.00012978,2]
[326915660,1715571048453,-377.00428015,0.00012978,2]
[326915661,1715571048462,-3504.32794881,0.00012978,2]
[326915662,1715571048472,-155.19583068,0.00012978,2]
[326915663,1715571048481,-1623.45850459,0.00012978,2]
[326915664,1715571048490,-504.77002683,0.00012978,2]
[326915665,1715571048502,-500.0,0.00012978,2]
[326915666,1715571048513,-625.84026047,0.00012978,2]
[326915667,1715571048523,-504.07856958,0.00012978,2]
[326915668,1715571048532,-500.0,0.00012978,2]
[326915669,1715571048542,-500.0,0.00012978,2]
[326915670,1715571048551,-508.49817037,0.00012978,2]
[326915671,1715571048561,-500.0,0.00012978,2]
[326915672,1715571048571,-500.0,0.00012978,2]
[326915673,1715571048580,-500.0,0.00012978,2]
[326915674,1715571048590,-500.0,0.00012978,2]
[326915675,1715571048600,-213.83068479,0.00012978,2]
[326915676,1715571048610,-500.0,0.00012978,2]
[326915677,1715571048619,-506.83916041,0.00012978,2]
[326915678,1715571048630,-500.0,0.00012978,2]
[326915679,1715571048643,-504.4155412,0.00012978,2]
[326915680,1715571048652,-505.12838023,0.00012978,2]
[326915681,1715571048662,-564.33613886,0.00012978,2]
[326915682,1715571048672,-626.6204912,0.00012978,2]
[326915683,1715571048686,-518.54152495,0.00012978,2]
[326915684,1715571048695,-512.85747635,0.00012978,2]
[326915685,1715571048705,-500.0,0.00012978,2]
[326915686,1715571048714,-500.0,0.00012978,2]
[326915687,1715571048724,-500.0,0.00012978,2]
[326915688,1715571048733,-504.32756281,0.00012978,2]
[326915689,1715571048742,-500.0,0.00012978,2]
[326915690,1715571048752,-500.0,0.00012978,2]
[326915691,1715571048762,-500.0,0.00012978,2]
[326915692,1715571048771,-504.62080811,0.00012978,2]
[326915693,1715571048782,-500.0,0.00012978,2]
[326915694,1715571048791,-505.41318068,0.00012978,2]
[326915695,1715571048800,-630.6793356,0.00012978,2]
[326915696,1715571048810,-500.0,0.00012978,2]
[326915697,1715571048819,-508.1245102,0.00012978,2]
[326915698,1715571048829,-500.0,0.00012978,2]
[326915699,1715571048839,-319.31006038,0.00012978,2]
[326915700,1715571048850,-272.2482968,0.00012978,2]
[326915701,1715571048861,-506.87715151,0.00012978,2]
[326915702,1715571048871,-500.0,0.00012978,2]
[326915703,1715571048881,-152.61,0.00012978,2]
[326915704,1715571048891,-170.7863295,0.00012978,2]
[326915705,1715571048901,-258.26576622,0.00012978,2]
[326915706,1715571048911,-506.3093944,0.00012978,2]
[326915707,1715571048921,-500.0,0.00012978,2]
[326915708,1715571048931,-207.04464405,0.00012978,2]
[326915709,1715571048940,-500.0,0.00012978,2]
[326915710,1715571048950,-222.80866485,0.00012978,2]
[326915711,1715571048960,-500.0,0.00012978,2]
[326915712,1715571048969,-508.03579779,0.00012978,2]
[326915713,1715571048979,-506.57849995,0.00012978,2]
[326915714,1715571048989,-500.0,0.00012978,2]
[326915715,1715571048999,-500.0,0.00012978,2]
[326915716,1715571049008,-520.28912015,0.00012978,2]
[326915717,1715571049018,-500.0,0.00012978,2]
[326915718,1715571049028,-500.0,0.00012978,2]
[326915719,1715571049038,-508.10325711,0.00012978,2]
[326915720,1715571049047,-500.0,0.00012978,2]
[326915721,1715571049057,-314.11574525,0.00012978,2]
[326915722,1715571049067,-215.32152171,0.00012978,2]
[326915723,1715571049076,-503.3574977,0.00012978,2]
[326915724,1715571049086,-504.85520542,0.00012978,2]
[326915725,1715571049095,-506.01262656,0.00012978,2]
[326915726,1715571049106,-293.43425428,0.00012978,2]
[326915727,1715571049116,-237.87013982,0.00012978,2]
[326915728,1715571049126,-500.0,0.00012978,2]
[326915729,1715571049135,-572.06,0.00012978,2]
[326915730,1715571049145,-500.0,0.00012978,2]
[326915731,1715571049154,-500.0,0.00012978,2]
[326915732,1715571049164,-500.0,0.00012978,2]
[326915733,1715571049174,-500.0,0.00012978,2]
[326915734,1715571049183,-500.0,0.00012978,2]
[326915735,1715571049193,-533.72,0.00012978,2]
[326915736,1715571049203,-500.0,0.00012978,2]
[326915737,1715571049213,-507.62324545,0.00012978,2]
[326915738,1715571049223,-660.51,0.00012978,2]
[326915739,1715571049232,-510.04384307,0.00012978,2]
[326915740,1715571049242,-660.51,0.00012978,2]
[326915741,1715571049253,-334.88561864,0.00012978,2]
[326915742,1715571049263,-504.98852776,0.00012978,2]
[326915743,1715571049273,-500.0,0.00012978,2]
[326915744,1715571049284,-500.0,0.00012978,2]
[326915745,1715571049294,-500.0,0.00012978,2]
[326915746,1715571049304,-500.0,0.00012978,2]
[326915747,1715571049314,-504.72824485,0.00012978,2]
[326915748,1715571049323,-524.2411895,0.00012978,2]
[326915749,1715571049333,-603.21189386,0.00012978,2]
[326915750,1715571049342,-183.11324079,0.00012978,2]
[326915751,1715571049352,-505.89080494,0.00012978,2]
[326915752,1715571049362,-506.63008397,0.00012978,2]
[326915753,1715571049371,-500.0,0.00012978,2]
[326915754,1715571049381,-505.98718447,0.00012978,2]
[326915755,1715571049391,-500.0,0.00012978,2]
[326915756,1715571049401,-327.27823361,0.00012978,2]
[326915757,1715571049411,-504.50970348,0.00012978,2]
[326915758,1715571049423,-500.0,0.00012978,2]
[326915759,1715571049434,-531.11642398,0.00012978,2]
[326915760,1715571049444,-347.23957939,0.00012978,2]
[326915761,1715571049672,-152.76042061,0.00012978,2]
[326915762,1715571049683,-370.09677966,0.00012978,2]
[326915763,1715571049731,-146.39322034,0.00012978,2]
[326915764,1715571049741,-444.4456543,0.00012978,2]
[326915765,1715571049760,-55.5543457,0.00012978,2]
[326915766,1715571049771,-1950.24,0.00012978,2]
[326915767,1715571049785,-500.0,0.00012978,2]
[326915768,1715571049797,-500.0,0.00012978,2]
[326915769,1715571049809,-506.92983732,0.00012978,2]
[326915770,1715571049820,-615.51193956,0.00012978,2]
[326915771,1715571049830,-500.0,0.00012978,2]
[326915772,1715571049841,-506.11503006,0.00012978,2]
[326915773,1715571049851,-508.43876761,0.00012978,2]
[326915774,1715571049862,-297.37519578,0.00012978,2]
[326915775,1715571049873,-159.83488397,0.00012978,2]
[326915776,1715571049887,-340.16511603,0.00012978,2]
[326915777,1715571049898,-500.0,0.00012978,2]
[326915778,1715571049910,-500.0,0.00012978,2]
[326915779,1715571049921,-500.0,0.00012978,2]
[326915780,1715571049932,-503.32934026,0.00012978,2]
[326915781,1715571049944,-506.73087402,0.00012978,2]
[326915782,1715571049955,-500.0,0.00012978,2]
[326915783,1715571049966,-500.0,0.00012978,2]
[326915784,1715571049977,-500.0,0.00012978,2]
[326915785,1715571049990,-500.0,0.00012978,2]
[326915786,1715571050003,-506.89065829,0.00012978,2]
[326915787,1715571050015,-504.7475996,0.00012978,2]
[326915788,1715571050026,-239.24110837,0.00012978,2]
[326915789,1715571050037,-500.0,0.00012978,2]
[326915790,1715571050047,-511.38894043,0.00012978,2]
[326915791,1715571050058,-500.0,0.00012978,2]
[326915792,1715571050068,-590.70863492,0.00012978,2]
[326915793,1715571050079,-500.0,0.00012978,2]
[326915794,1715571050091,-500.0,0.00012978,2]
[326915795,1715571050102,-517.45944823,0.00012978,2]
[326915796,1715571050113,-500.0,0.00012978,2]
[326915797,1715571050124,-500.0,0.00012978,2]
[326915798,1715571050135,-500.0,0.00012978,2]
[326915799,1715571050146,-500.0,0.00012978,2]
[326915800,1715571050156,-609.86443546,0.00012978,2]
[326915801,1715571050166,-500.0,0.00012978,2]
[326915802,1715571050176,-500.0,0.00012978,2]
[326915803,1715571050186,-500.0,0.00012978,2]
[326915804,1715571050197,-500.0,0.00012978,2]
[326915805,1715571050207,-500.0,0.00012978,2]
[326915806,1715571050218,-169.36244351,0.00012978,2]
[326915807,1715571050229,-500.0,0.00012978,2]
[326915808,1715571050240,-327.87855729,0.00012978,2]
[326915809,1715571050251,-500.0,0.00012978,2]
[326915810,1715571050262,-505.79872785,0.00012978,2]
[326915811,1715571050273,-500.0,0.00012978,2]
[326915812,1715571050284,-642.61859032,0.00012978,2]
[326915813,1715571050295,-505.4840454,0.00012978,2]
[326915814,1715571050307,-500.0,0.00012978,2]
[326915815,1715571050318,-500.0,0.00012978,2]
[326915816,1715571050331,-349.05154993,0.00012978,2]
[326915817,1715571050342,-188.4821851,0.00012978,2]
[326915818,1715571050353,-562.12300064,0.00012978,2]
[326915819,1715571050363,-365.17815613,0.00012978,2]
[326915820,1715571050373,-500.0,0.00012978,2]
[326915821,1715571050382,-336.57986053,0.00012978,2]
[326915822,1715571050392,-500.0,0.00012978,2]
[326915823,1715571050402,-500.0,0.00012978,2]
[326915824,1715571050412,-500.0,0.00012978,2]
[326915825,1715571050423,-506.92927208,0.00012978,2]
[326915826,1715571050439,-505.41523306,0.00012978,2]
[326915827,1715571050450,-500.0,0.00012978,2]
[326915828,1715571050461,-500.0,0.00012978,2]
[326915829,1715571050473,-500.0,0.00012978,2]
[326915830,1715571050484,-532.01164192,0.00012978,2]
[326915831,1715571050494,-500.0,0.00012978,2]
[326915832,1715571050508,-500.0,0.00012978,2]
[326915833,1715571050519,-500.0,0.00012978,2]